[Event "December 5 Early 2023"]
[Site "https://www.chess.com"]
[Date "2023.12.05"]
[Round "8"]
[White "Viskelis, Darius"]
[Black "Teumer, Joerg, Dr."]
[Result "1-0"]
[Board "172"]
[TimeControl "180+1"]
[WhiteFideId "12800830"]
[BlackFideId "4643526"]
[WhiteElo "2370"]
[BlackElo "2128"]
[WhiteTeam "LTU"]
[BlackTeam "GER"]
[WhiteClock "0:01:47"]
[BlackClock "0:00:00"]

1. e4 {[%clk 0:02:53]}  d5 {[%clk 0:02:57]} 2. exd5 {[%clk 0:02:53]}  Nf6 {[%clk 0:02:57]} 3. c4 {[%clk 0:02:53]}  e6 {[%clk 0:02:54]} 4. d4 {[%clk 0:02:53]}  exd5 {[%clk 0:02:54]} 5. Nc3 {[%clk 0:02:54]}  c6 {[%clk 0:02:53]} 6. Nf3 {[%clk 0:02:53]}  Be7 {[%clk 0:02:51]} 7. Be2 {[%clk 0:02:53]}  Be6 {[%clk 0:02:51]} 8. c5 {[%clk 0:02:52]}  b6 {[%clk 0:02:49]} 9. cxb6 {[%clk 0:02:50]}  axb6 {[%clk 0:02:48]} 10. O-O {[%clk 0:02:50]}  O-O {[%clk 0:02:44]} 11. h3 {[%clk 0:02:50]}  Re8 {[%clk 0:02:36]} 12. Re1 {[%clk 0:02:49]}  h6 {[%clk 0:02:26]} 13. Ne5 {[%clk 0:02:49]}  Bd6 {[%clk 0:02:15]} 14. Bf3 {[%clk 0:02:46]}  Qc7 {[%clk 0:02:10]} 15. Bf4 {[%clk 0:02:43]}  Nbd7 {[%clk 0:02:07]} 16. Rc1 {[%clk 0:02:37]}  Bxe5 {[%clk 0:01:56]} 17. Bxe5 {[%clk 0:02:35]}  Nxe5 {[%clk 0:01:55]} 18. dxe5 {[%clk 0:02:36]}  Nd7 {[%clk 0:01:48]} 19. Nb5 {[%clk 0:02:32]}  Qb8 {[%clk 0:01:38]} 20. Nd6 {[%clk 0:02:30]}  Rd8 {[%clk 0:01:36]} 21. a3 {[%clk 0:02:26]}  Nc5 {[%clk 0:01:30]} 22. b4 {[%clk 0:02:21]}  Ne4 {[%clk 0:01:27]} 23. Bxe4 {[%clk 0:02:20]}  dxe4 {[%clk 0:01:28]} 24. Rxc6 {[%clk 0:02:20]}  Rxa3 {[%clk 0:01:25]} 25. Qd4 {[%clk 0:02:19]}  Qa8 {[%clk 0:01:09]} 26. Rec1 {[%clk 0:02:17]}  e3 {[%clk 0:01:04]} 27. fxe3 {[%clk 0:02:16]}  Qa4 {[%clk 0:00:54]} 28. Qxb6 {[%clk 0:02:14]}  Rf8 {[%clk 0:00:48]} 29. Qd4 {[%clk 0:02:10]}  Qb3 {[%clk 0:00:46]} 30. b5 {[%clk 0:02:02]}  Ra4 {[%clk 0:00:45]} 31. Qc3 {[%clk 0:02:00]}  Qd5 {[%clk 0:00:42]} 32. b6 {[%clk 0:01:54]}  Ra2 {[%clk 0:00:42]} 33. Rc2 {[%clk 0:01:52]}  Rxc2 {[%clk 0:00:35]} 34. Qxc2 {[%clk 0:01:53]}  Ra8 {[%clk 0:00:31]} 35. b7 {[%clk 0:01:48]}  Ra1+ {[%clk 0:00:30]} 36. Kh2 {[%clk 0:01:47]}  Qxe5+ {[%clk 0:00:31]} 37. g3 {[%clk 0:01:47]}  Qxe3 {[%clk 0:00:04]} 38. Rc8+ {[%clk 0:01:46]}  Bxc8 {[%clk 0:00:00]} 39. bxc8=Q+ {[%clk 0:01:47]} 1-0

[Event "December 5 Early 2023"]
[Site "https://www.chess.com"]
[Date "2023.12.05"]
[Round "8"]
[White "NastyaHn"]
[Black "Mende, Andreas"]
[Result "1/2-1/2"]
[Board "175"]
[TimeControl "180+1"]
[BlackFideId "4631102"]
[WhiteElo "2204"]
[BlackElo "2092"]
[BlackTeam "GER"]
[WhiteClock "0:00:07"]
[BlackClock "0:00:30"]

1. Nc3 {[%clk 0:02:59]}  c5 {[%clk 0:02:53]} 2. Nf3 {[%clk 0:02:58]}  Nc6 {[%clk 0:02:49]} 3. d4 {[%clk 0:02:58]}  cxd4 {[%clk 0:02:49]} 4. Nxd4 {[%clk 0:02:58]}  Nf6 {[%clk 0:02:48]} 5. Bg5 {[%clk 0:02:46]}  d6 {[%clk 0:02:42]} 6. Bxf6 {[%clk 0:02:42]}  gxf6 {[%clk 0:02:41]} 7. Qd2 {[%clk 0:02:36]}  e5 {[%clk 0:02:37]} 8. Nb3 {[%clk 0:02:33]}  Be6 {[%clk 0:02:35]} 9. O-O-O {[%clk 0:02:31]}  a5 {[%clk 0:02:32]} 10. a4 {[%clk 0:02:26]}  Nb4 {[%clk 0:02:24]} 11. e4 {[%clk 0:02:20]}  h5 {[%clk 0:02:18]} 12. Bb5+ {[%clk 0:02:17]}  Ke7 {[%clk 0:02:11]} 13. Kb1 {[%clk 0:02:14]}  Bh6 {[%clk 0:02:10]} 14. Qe2 {[%clk 0:02:11]}  Rc8 {[%clk 0:01:51]} 15. g3 {[%clk 0:01:37]}  Bg4 {[%clk 0:01:48]} 16. f3 {[%clk 0:01:36]}  Be6 {[%clk 0:01:48]} 17. h3 {[%clk 0:01:31]}  Qb6 {[%clk 0:01:45]} 18. f4 {[%clk 0:01:12]}  h4 {[%clk 0:01:36]} 19. f5 {[%clk 0:00:43]}  Bxb3 {[%clk 0:01:32]} 20. cxb3 {[%clk 0:00:40]}  hxg3 {[%clk 0:01:32]} 21. Bc4 {[%clk 0:00:28]}  Bf4 {[%clk 0:01:30]} 22. Rd5 {[%clk 0:00:19]}  Qf2 {[%clk 0:01:13]} 23. Qxf2 {[%clk 0:00:09]}  gxf2 {[%clk 0:01:13]} 24. Rdd1 {[%clk 0:00:09]}  Rcg8 {[%clk 0:01:05]} 25. Rdf1 {[%clk 0:00:07]}  Be3 {[%clk 0:01:04]} 26. Nd1 {[%clk 0:00:08]}  Bd4 {[%clk 0:01:04]} 27. Rh2 {[%clk 0:00:04]}  Rg1 {[%clk 0:01:02]} 28. Rh1 {[%clk 0:00:02]}  Rxh3 {[%clk 0:00:59]} 29. Rxh3 {[%clk 0:00:01]}  Rxf1 {[%clk 0:00:58]} 30. Bxf1 {[%clk 0:00:01]}  d5 {[%clk 0:00:55]} 31. Rh7 {[%clk 0:00:01]}  dxe4 {[%clk 0:00:55]} 32. Rh2 {[%clk 0:00:01]}  e3 {[%clk 0:00:55]} 33. Nxe3 {[%clk 0:00:02]}  Bxe3 {[%clk 0:00:54]} 34. Rh3 {[%clk 0:00:02]}  Bd4 {[%clk 0:00:54]} 35. Kc1 {[%clk 0:00:03]}  Nd5 {[%clk 0:00:54]} 36. Kd2 {[%clk 0:00:03]}  Nf4 {[%clk 0:00:54]} 37. Rf3 {[%clk 0:00:02]}  Nd5 {[%clk 0:00:53]} 38. Kd3 {[%clk 0:00:02]}  Nb4+ {[%clk 0:00:52]} 39. Kc4 {[%clk 0:00:02]}  Nc2 {[%clk 0:00:52]} 40. Rd3 {[%clk 0:00:01]}  Ne1 {[%clk 0:00:52]} 41. Rd1 {[%clk 0:00:01]}  Nf3 {[%clk 0:00:51]} 42. Rd3 {[%clk 0:00:01]}  Nh2 {[%clk 0:00:51]} 43. Rd1 {[%clk 0:00:02]}  Ng4 {[%clk 0:00:49]} 44. Rd3 {[%clk 0:00:02]}  Ne3+ {[%clk 0:00:49]} 45. Rxe3 {[%clk 0:00:02]}  Bxe3 {[%clk 0:00:49]} 46. Kd3 {[%clk 0:00:03]}  Bd4 {[%clk 0:00:49]} 47. Ke2 {[%clk 0:00:03]}  Kd6 {[%clk 0:00:48]} 48. Bg2 {[%clk 0:00:04]}  Kc5 {[%clk 0:00:48]} 49. Bxb7 {[%clk 0:00:04]}  Kb4 {[%clk 0:00:49]} 50. Bd5 {[%clk 0:00:04]}  e4 {[%clk 0:00:48]} 51. Bxe4 {[%clk 0:00:04]}  Kxb3 {[%clk 0:00:48]} 52. Bd5+ {[%clk 0:00:05]}  Kxb2 {[%clk 0:00:47]} 53. Bxf7 {[%clk 0:00:05]}  Ka3 {[%clk 0:00:47]} 54. Be8 {[%clk 0:00:06]}  Kb4 {[%clk 0:00:47]} 55. Bd7 {[%clk 0:00:06]}  Be5 {[%clk 0:00:46]} 56. Be8 {[%clk 0:00:06]}  Bd4 {[%clk 0:00:46]} 57. Bd7 {[%clk 0:00:06]}  Kc3 {[%clk 0:00:45]} 58. Be8 {[%clk 0:00:06]}  Kc4 {[%clk 0:00:45]} 59. Bd7 {[%clk 0:00:06]}  Kd5 {[%clk 0:00:45]} 60. Be8 {[%clk 0:00:06]}  Ke5 {[%clk 0:00:45]} 61. Bd7 {[%clk 0:00:06]}  Kf4 {[%clk 0:00:45]} 62. Bc8 {[%clk 0:00:05]}  Kg3 {[%clk 0:00:45]} 63. Kf1 {[%clk 0:00:06]}  Kf4 {[%clk 0:00:44]} 64. Bd7 {[%clk 0:00:06]}  Ke5 {[%clk 0:00:44]} 65. Bc8 {[%clk 0:00:06]}  Kd6 {[%clk 0:00:43]} 66. Be6 {[%clk 0:00:07]}  Kc5 {[%clk 0:00:42]} 67. Bd7 {[%clk 0:00:06]}  Kb4 {[%clk 0:00:30]} 68. Be8 {[%clk 0:00:07]} 1/2-1/2

[Event "December 5 Early 2023"]
[Site "https://www.chess.com"]
[Date "2023.12.05"]
[Round "8"]
[White "Jesusesmifuerza"]
[Black "Nikulina, Alena"]
[Result "1/2-1/2"]
[Board "178"]
[TimeControl "180+1"]
[BlackFideId "4172051"]
[WhiteElo "2104"]
[BlackElo "2016"]
[BlackTeam "RUS"]
[WhiteClock "0:01:10"]
[BlackClock "0:00:30"]

1. d4 {[%clk 0:03:00]}  d5 {[%clk 0:02:59]} 2. Nf3 {[%clk 0:03:01]}  Nf6 {[%clk 0:02:59]} 3. e3 {[%clk 0:03:01]}  e6 {[%clk 0:02:59]} 4. Bd3 {[%clk 0:03:02]}  c5 {[%clk 0:02:59]} 5. c3 {[%clk 0:03:03]}  Nc6 {[%clk 0:02:55]} 6. Nbd2 {[%clk 0:03:03]}  Bd6 {[%clk 0:02:53]} 7. O-O {[%clk 0:03:04]}  e5 {[%clk 0:02:49]} 8. dxc5 {[%clk 0:03:01]}  Bxc5 {[%clk 0:02:47]} 9. e4 {[%clk 0:03:02]}  O-O {[%clk 0:02:43]} 10. exd5 {[%clk 0:03:01]}  Qxd5 {[%clk 0:02:35]} 11. Bc4 {[%clk 0:02:53]}  Qd8 {[%clk 0:02:25]} 12. Re1 {[%clk 0:02:54]}  Re8 {[%clk 0:02:21]} 13. Nb3 {[%clk 0:02:49]}  Bb6 {[%clk 0:02:19]} 14. Bg5 {[%clk 0:02:49]}  Qxd1 {[%clk 0:02:13]} 15. Raxd1 {[%clk 0:02:48]}  Ng4 {[%clk 0:02:13]} 16. Rd2 {[%clk 0:02:33]}  Be6 {[%clk 0:02:06]} 17. Bxe6 {[%clk 0:02:32]}  Rxe6 {[%clk 0:02:04]} 18. h3 {[%clk 0:02:31]}  Nf6 {[%clk 0:01:36]} 19. Rde2 {[%clk 0:02:13]}  Nd7 {[%clk 0:01:29]} 20. Be3 {[%clk 0:02:10]}  f6 {[%clk 0:01:11]} 21. Bxb6 {[%clk 0:02:09]}  Nxb6 {[%clk 0:01:12]} 22. Rd2 {[%clk 0:02:08]}  Kf7 {[%clk 0:01:10]} 23. Red1 {[%clk 0:02:08]}  Rae8 {[%clk 0:01:07]} 24. Nc5 {[%clk 0:02:07]}  R6e7 {[%clk 0:01:07]} 25. Nd7 {[%clk 0:01:57]}  Nc4 {[%clk 0:01:02]} 26. Rd5 {[%clk 0:01:50]}  Nxb2 {[%clk 0:00:59]} 27. Rb1 {[%clk 0:01:45]}  Na4 {[%clk 0:00:57]} 28. Rxb7 {[%clk 0:01:38]}  Rd8 {[%clk 0:00:37]} 29. c4 {[%clk 0:01:26]}  Nc3 {[%clk 0:00:35]} 30. Rd2 {[%clk 0:01:22]}  Ne4 {[%clk 0:00:34]} 31. Rd5 {[%clk 0:01:19]}  Nc3 {[%clk 0:00:33]} 32. Rd2 {[%clk 0:01:11]}  Ne4 {[%clk 0:00:33]} 33. Rd5 {[%clk 0:01:10]}  Nc3 {[%clk 0:00:30]} 1/2-1/2

[Event "December 5 Early 2023"]
[Site "https://www.chess.com"]
[Date "2023.12.05"]
[Round "8"]
[White "Kniazev, Igor"]
[Black "Smirnov, Timofey"]
[Result "0-1"]
[Board "180"]
[TimeControl "180+1"]
[WhiteFideId "4136349"]
[BlackFideId "24176427"]
[WhiteElo "2095"]
[BlackElo "2025"]
[WhiteTeam "RUS"]
[BlackTeam "RUS"]
[WhiteClock "0:00:00"]
[BlackClock "0:00:12"]

1. e4 {[%clk 0:02:59]}  e5 {[%clk 0:02:59]} 2. Nf3 {[%clk 0:02:58]}  Nf6 {[%clk 0:02:59]} 3. Nxe5 {[%clk 0:02:58]}  d6 {[%clk 0:02:59]} 4. Nf3 {[%clk 0:02:57]}  Nxe4 {[%clk 0:03:00]} 5. d4 {[%clk 0:02:58]}  d5 {[%clk 0:03:00]} 6. Bd3 {[%clk 0:02:55]}  Nc6 {[%clk 0:03:00]} 7. O-O {[%clk 0:02:55]}  Be7 {[%clk 0:03:00]} 8. c4 {[%clk 0:02:54]}  Nb4 {[%clk 0:02:56]} 9. Bxe4 {[%clk 0:02:38]}  dxe4 {[%clk 0:02:53]} 10. Ne5 {[%clk 0:02:39]}  O-O {[%clk 0:02:37]} 11. a3 {[%clk 0:02:34]}  Na6 {[%clk 0:02:25]} 12. Be3 {[%clk 0:02:22]}  c6 {[%clk 0:02:20]} 13. Nc3 {[%clk 0:02:20]}  Bf5 {[%clk 0:02:18]} 14. h3 {[%clk 0:02:01]}  h6 {[%clk 0:02:18]} 15. Qd2 {[%clk 0:01:59]}  Bg5 {[%clk 0:02:09]} 16. Rad1 {[%clk 0:01:57]}  Bxe3 {[%clk 0:02:05]} 17. Qxe3 {[%clk 0:01:53]}  Qg5 {[%clk 0:01:56]} 18. f4 {[%clk 0:01:36]}  exf3 {[%clk 0:01:52]} 19. Qxg5 {[%clk 0:01:35]}  hxg5 {[%clk 0:01:49]} 20. Rxf3 {[%clk 0:01:36]}  g6 {[%clk 0:01:44]} 21. g4 {[%clk 0:01:32]}  Be6 {[%clk 0:01:33]} 22. d5 {[%clk 0:01:32]}  cxd5 {[%clk 0:01:33]} 23. cxd5 {[%clk 0:01:32]}  Bc8 {[%clk 0:01:31]} 24. Rdf1 {[%clk 0:01:29]}  Nc5 {[%clk 0:01:22]} 25. Rxf7 {[%clk 0:01:22]}  Rxf7 {[%clk 0:01:13]} 26. Nxf7 {[%clk 0:01:20]}  Bd7 {[%clk 0:01:08]} 27. Ne5 {[%clk 0:01:15]}  Be8 {[%clk 0:01:04]} 28. b4 {[%clk 0:01:09]}  Nb3 {[%clk 0:01:00]} 29. Ne4 {[%clk 0:01:07]}  Nd4 {[%clk 0:00:57]} 30. Nf6+ {[%clk 0:01:06]}  Kf8 {[%clk 0:00:55]} 31. d6 {[%clk 0:00:58]}  Bb5 {[%clk 0:00:44]} 32. Nfd7+ {[%clk 0:00:55]}  Kg8 {[%clk 0:00:40]} 33. Rf6 {[%clk 0:00:53]}  Ne2+ {[%clk 0:00:37]} 34. Kf2 {[%clk 0:00:50]}  Nf4 {[%clk 0:00:37]} 35. Kg3 {[%clk 0:00:42]}  Rc8 {[%clk 0:00:35]} 36. Nc5 {[%clk 0:00:40]}  b6 {[%clk 0:00:34]} 37. d7 {[%clk 0:00:38]}  Rd8 {[%clk 0:00:34]} 38. Nb7 {[%clk 0:00:35]}  Rb8 {[%clk 0:00:34]} 39. d8=Q+ {[%clk 0:00:34]}  Rxd8 {[%clk 0:00:31]} 40. Nxd8 {[%clk 0:00:34]}  Kg7 {[%clk 0:00:13]} 41. Rf7+ {[%clk 0:00:00]}  Kg8 {[%clk 0:00:12]} 0-1

[Event "December 5 Early 2023"]
[Site "https://www.chess.com"]
[Date "2023.12.05"]
[Round "9"]
[White "Matlakov, Maxim"]
[Black "Firouzja, Alireza"]
[Result "1-0"]
[Board "2"]
[TimeControl "180+1"]
[WhiteFideId "4168003"]
[BlackFideId "12573981"]
[WhiteElo "3001"]
[BlackElo "3179"]
[WhiteTeam "RUS"]
[BlackTeam "FRA"]
[WhiteClock "0:00:33"]
[BlackClock "0:00:00"]

1. d4 {[%clk 0:03:00]}  Nf6 {[%clk 0:02:59]} 2. Nf3 {[%clk 0:03:00]}  g6 {[%clk 0:02:59]} 3. c4 {[%clk 0:02:58]}  Bg7 {[%clk 0:02:59]} 4. Nc3 {[%clk 0:02:59]}  O-O {[%clk 0:03:00]} 5. e4 {[%clk 0:02:58]}  d6 {[%clk 0:03:00]} 6. Be2 {[%clk 0:02:59]}  e5 {[%clk 0:03:00]} 7. O-O {[%clk 0:02:59]}  Na6 {[%clk 0:03:01]} 8. Be3 {[%clk 0:02:57]}  Qe7 {[%clk 0:03:00]} 9. dxe5 {[%clk 0:02:56]}  dxe5 {[%clk 0:03:00]} 10. Nd5 {[%clk 0:02:56]}  Qd8 {[%clk 0:03:00]} 11. Qc2 {[%clk 0:02:56]}  Ng4 {[%clk 0:02:54]} 12. Rad1 {[%clk 0:02:55]}  Nxe3 {[%clk 0:02:45]} 13. Nxe3 {[%clk 0:02:56]}  Qe7 {[%clk 0:02:38]} 14. Nd5 {[%clk 0:02:54]}  Qd6 {[%clk 0:02:29]} 15. a3 {[%clk 0:02:39]}  c5 {[%clk 0:02:10]} 16. h3 {[%clk 0:02:30]}  Nb8 {[%clk 0:02:06]} 17. b4 {[%clk 0:02:28]}  Nc6 {[%clk 0:01:54]} 18. Nb6 {[%clk 0:02:13]}  Qxd1 {[%clk 0:01:36]} 19. Rxd1 {[%clk 0:02:14]}  axb6 {[%clk 0:01:36]} 20. Qb3 {[%clk 0:02:02]}  Be6 {[%clk 0:01:21]} 21. Rd6 {[%clk 0:01:58]}  Rfc8 {[%clk 0:00:55]} 22. b5 {[%clk 0:01:29]}  Nd4 {[%clk 0:00:26]} 23. Nxd4 {[%clk 0:01:28]}  cxd4 {[%clk 0:00:27]} 24. Rxb6 {[%clk 0:01:27]}  Rc7 {[%clk 0:00:28]} 25. a4 {[%clk 0:01:15]}  Rd8 {[%clk 0:00:11]} 26. a5 {[%clk 0:01:09]}  d3 {[%clk 0:00:04]} 27. Bxd3 {[%clk 0:01:08]}  Rcd7 {[%clk 0:00:05]} 28. Be2 {[%clk 0:01:02]}  Rd2 {[%clk 0:00:05]} 29. Bg4 {[%clk 0:00:44]}  Bxg4 {[%clk 0:00:05]} 30. hxg4 {[%clk 0:00:45]}  R8d3 {[%clk 0:00:05]} 31. Qxd3 {[%clk 0:00:44]}  Rxd3 {[%clk 0:00:05]} 32. Rxb7 {[%clk 0:00:44]}  Ra3 {[%clk 0:00:05]} 33. c5 {[%clk 0:00:35]}  Bf8 {[%clk 0:00:03]} 34. c6 {[%clk 0:00:34]}  Bd6 {[%clk 0:00:00]} 35. Rd7 {[%clk 0:00:33]} 1-0

[Event "December 5 Early 2023"]
[Site "https://www.chess.com"]
[Date "2023.12.05"]
[Round "9"]
[White "Andreikin, Dmitry"]
[Black "Martinez Alcantara, Jose Eduardo"]
[Result "1-0"]
[Board "3"]
[TimeControl "180+1"]
[WhiteFideId "4158814"]
[BlackFideId "3805662"]
[WhiteElo "3101"]
[BlackElo "2998"]
[WhiteTeam "FID"]
[BlackTeam "PER"]
[WhiteClock "0:00:22"]
[BlackClock "0:00:01"]

1. d4 {[%clk 0:03:00]}  Nf6 {[%clk 0:03:00]} 2. c4 {[%clk 0:03:00]}  e6 {[%clk 0:03:00]} 3. Nf3 {[%clk 0:03:01]}  Bb4+ {[%clk 0:03:01]} 4. Bd2 {[%clk 0:02:59]}  c5 {[%clk 0:03:01]} 5. Bxb4 {[%clk 0:02:57]}  cxb4 {[%clk 0:03:02]} 6. g3 {[%clk 0:02:54]}  b6 {[%clk 0:03:00]} 7. Bg2 {[%clk 0:02:55]}  Bb7 {[%clk 0:03:00]} 8. O-O {[%clk 0:02:55]}  a5 {[%clk 0:03:01]} 9. a3 {[%clk 0:02:46]}  Na6 {[%clk 0:03:00]} 10. Nbd2 {[%clk 0:02:39]}  O-O {[%clk 0:03:00]} 11. Qb1 {[%clk 0:02:37]}  h6 {[%clk 0:02:52]} 12. Rd1 {[%clk 0:02:34]}  d6 {[%clk 0:02:52]} 13. Ne1 {[%clk 0:02:32]}  Bxg2 {[%clk 0:02:52]} 14. Kxg2 {[%clk 0:02:33]}  Qc7 {[%clk 0:02:37]} 15. Nd3 {[%clk 0:02:30]}  bxa3 {[%clk 0:02:38]} 16. bxa3 {[%clk 0:02:30]}  Nb8 {[%clk 0:02:37]} 17. Qb5 {[%clk 0:02:24]}  Nbd7 {[%clk 0:02:37]} 18. Rac1 {[%clk 0:02:21]}  Rfc8 {[%clk 0:02:36]} 19. e3 {[%clk 0:02:07]}  Rab8 {[%clk 0:02:36]} 20. Kg1 {[%clk 0:02:06]}  Qb7 {[%clk 0:02:28]} 21. Nf4 {[%clk 0:01:55]}  Rc7 {[%clk 0:02:07]} 22. Rb1 {[%clk 0:01:50]}  Qa8 {[%clk 0:01:56]} 23. h4 {[%clk 0:01:42]}  Rbc8 {[%clk 0:01:48]} 24. Ne2 {[%clk 0:01:36]}  Ne4 {[%clk 0:01:33]} 25. Nxe4 {[%clk 0:01:29]}  Qxe4 {[%clk 0:01:34]} 26. Nc3 {[%clk 0:01:29]}  Qf3 {[%clk 0:01:26]} 27. Na4 {[%clk 0:01:27]}  Rc6 {[%clk 0:00:43]} 28. Rf1 {[%clk 0:01:18]}  d5 {[%clk 0:00:33]} 29. cxd5 {[%clk 0:00:59]}  exd5 {[%clk 0:00:34]} 30. Qa6 {[%clk 0:01:00]}  g5 {[%clk 0:00:31]} 31. h5 {[%clk 0:00:54]}  Kg7 {[%clk 0:00:22]} 32. Nxb6 {[%clk 0:00:44]}  Re8 {[%clk 0:00:11]} 33. Qb7 {[%clk 0:00:37]}  Rxb6 {[%clk 0:00:08]} 34. Qxd7 {[%clk 0:00:28]}  Rxb1 {[%clk 0:00:08]} 35. Qxe8 {[%clk 0:00:28]}  Rxf1+ {[%clk 0:00:05]} 36. Kxf1 {[%clk 0:00:28]}  Qxh5 {[%clk 0:00:02]} 37. Qe5+ {[%clk 0:00:27]}  f6 {[%clk 0:00:02]} 38. Qxd5 {[%clk 0:00:27]}  Qd1+ {[%clk 0:00:03]} 39. Kg2 {[%clk 0:00:27]}  a4 {[%clk 0:00:03]} 40. Qd7+ {[%clk 0:00:24]}  Kg6 {[%clk 0:00:03]} 41. Qe8+ {[%clk 0:00:24]}  Kg7 {[%clk 0:00:03]} 42. Qe7+ {[%clk 0:00:24]}  Kg6 {[%clk 0:00:03]} 43. Qe8+ {[%clk 0:00:23]}  Kg7 {[%clk 0:00:03]} 44. Qd7+ {[%clk 0:00:24]}  Kg6 {[%clk 0:00:03]} 45. d5 {[%clk 0:00:25]}  Qb3 {[%clk 0:00:01]} 46. Qe8+ {[%clk 0:00:24]}  Kg7 {[%clk 0:00:02]} 47. Qe7+ {[%clk 0:00:23]}  Kg6 {[%clk 0:00:02]} 48. Qe4+ {[%clk 0:00:21]}  Kg7 {[%clk 0:00:02]} 49. d6 {[%clk 0:00:22]}  Qf7 {[%clk 0:00:02]} 50. Qc6 {[%clk 0:00:19]}  Qe6 {[%clk 0:00:02]} 51. Qc7+ {[%clk 0:00:18]}  Kg6 {[%clk 0:00:02]} 52. d7 {[%clk 0:00:19]}  Qe4+ {[%clk 0:00:03]} 53. Kh2 {[%clk 0:00:19]}  Qf3 {[%clk 0:00:03]} 54. Qc2+ {[%clk 0:00:19]}  Qf5 {[%clk 0:00:01]} 55. Qxf5+ {[%clk 0:00:18]}  Kxf5 {[%clk 0:00:02]} 56. d8=Q {[%clk 0:00:18]}  Kg4 {[%clk 0:00:02]} 57. Qd4+ {[%clk 0:00:18]}  Kh5 {[%clk 0:00:02]} 58. Qxa4 {[%clk 0:00:18]}  f5 {[%clk 0:00:03]} 59. Qe8+ {[%clk 0:00:19]}  Kg4 {[%clk 0:00:03]} 60. Kg2 {[%clk 0:00:19]}  f4 {[%clk 0:00:04]} 61. f3+ {[%clk 0:00:20]}  Kf5 {[%clk 0:00:04]} 62. g4+ {[%clk 0:00:20]}  Kf6 {[%clk 0:00:05]} 63. e4 {[%clk 0:00:20]}  Kg7 {[%clk 0:00:06]} 64. e5 {[%clk 0:00:20]}  Kh7 {[%clk 0:00:07]} 65. Qf7+ {[%clk 0:00:20]}  Kh8 {[%clk 0:00:07]} 66. e6 {[%clk 0:00:21]}  h5 {[%clk 0:00:08]} 67. e7 {[%clk 0:00:21]}  h4 {[%clk 0:00:01]} 68. e8=Q# {[%clk 0:00:22]} 1-0

[Event "December 5 Early 2023"]
[Site "https://www.chess.com"]
[Date "2023.12.05"]
[Round "9"]
[White "Duda, Jan-Krzysztof"]
[Black "Shimanov, Aleksandr"]
[Result "0-1"]
[Board "4"]
[TimeControl "180+1"]
[WhiteFideId "1170546"]
[BlackFideId "4198603"]
[WhiteElo "3066"]
[BlackElo "2974"]
[WhiteTeam "POL"]
[BlackTeam "RUS"]
[WhiteClock "0:00:00"]
[BlackClock "0:01:05"]

1. d4 {[%clk 0:03:00]}  Nf6 {[%clk 0:02:54]} 2. c4 {[%clk 0:03:00]}  g6 {[%clk 0:02:54]} 3. Nc3 {[%clk 0:02:59]}  Bg7 {[%clk 0:02:54]} 4. e4 {[%clk 0:02:59]}  d6 {[%clk 0:02:54]} 5. h3 {[%clk 0:02:58]}  Nbd7 {[%clk 0:02:52]} 6. Be3 {[%clk 0:02:58]}  e5 {[%clk 0:02:52]} 7. d5 {[%clk 0:02:43]}  Nc5 {[%clk 0:02:51]} 8. Qc2 {[%clk 0:02:42]}  a5 {[%clk 0:02:50]} 9. Nf3 {[%clk 0:02:41]}  O-O {[%clk 0:02:39]} 10. g4 {[%clk 0:02:40]}  c6 {[%clk 0:02:36]} 11. O-O-O {[%clk 0:02:32]}  cxd5 {[%clk 0:02:31]} 12. cxd5 {[%clk 0:02:28]}  b6 {[%clk 0:02:28]} 13. Kb1 {[%clk 0:02:25]}  Bd7 {[%clk 0:02:23]} 14. Nd2 {[%clk 0:02:22]}  Rc8 {[%clk 0:02:21]} 15. f3 {[%clk 0:02:14]}  b5 {[%clk 0:02:11]} 16. Bxc5 {[%clk 0:01:45]}  Rxc5 {[%clk 0:02:10]} 17. Nb3 {[%clk 0:01:43]}  Rc8 {[%clk 0:02:10]} 18. Qd2 {[%clk 0:01:42]}  b4 {[%clk 0:02:00]} 19. Ne2 {[%clk 0:01:42]}  Qb6 {[%clk 0:01:56]} 20. Ng3 {[%clk 0:01:41]}  Rc7 {[%clk 0:01:51]} 21. h4 {[%clk 0:01:39]}  Rfc8 {[%clk 0:01:48]} 22. Bd3 {[%clk 0:01:39]}  a4 {[%clk 0:01:41]} 23. Na1 {[%clk 0:01:26]}  b3 {[%clk 0:01:37]} 24. h5 {[%clk 0:01:24]}  Nxd5 {[%clk 0:01:11]} 25. exd5 {[%clk 0:01:21]}  e4 {[%clk 0:01:11]} 26. axb3 {[%clk 0:00:27]}  axb3 {[%clk 0:01:10]} 27. Rc1 {[%clk 0:00:27]}  exd3 {[%clk 0:01:05]} 28. Rxc7 {[%clk 0:00:26]}  Rxc7 {[%clk 0:01:06]} 29. Qxd3 {[%clk 0:00:26]}  Bb5 {[%clk 0:01:05]} 30. Qxb3 {[%clk 0:00:00]}  Bd3+ {[%clk 0:01:05]} 0-1

[Event "December 5 Early 2023"]
[Site "https://www.chess.com"]
[Date "2023.12.05"]
[Round "9"]
[White "Nakamura, Hikaru"]
[Black "Henriquez Villagra, Cristobal"]
[Result "0-1"]
[Board "6"]
[TimeControl "180+1"]
[WhiteFideId "2016192"]
[BlackFideId "3409350"]
[WhiteElo "3244"]
[BlackElo "2976"]
[WhiteTeam "USA"]
[BlackTeam "CHI"]
[WhiteClock "0:00:09"]
[BlackClock "0:00:09"]

1. Nf3 {[%clk 0:03:00]}  Nf6 {[%clk 0:02:55]} 2. g3 {[%clk 0:03:00]}  d5 {[%clk 0:02:52]} 3. Bg2 {[%clk 0:03:01]}  c6 {[%clk 0:02:51]} 4. d3 {[%clk 0:03:01]}  Bf5 {[%clk 0:02:50]} 5. Nbd2 {[%clk 0:03:00]}  h6 {[%clk 0:02:50]} 6. c4 {[%clk 0:02:55]}  e6 {[%clk 0:02:51]} 7. b3 {[%clk 0:02:55]}  Be7 {[%clk 0:02:51]} 8. Bb2 {[%clk 0:02:56]}  O-O {[%clk 0:02:51]} 9. O-O {[%clk 0:02:56]}  Bh7 {[%clk 0:02:51]} 10. Qc2 {[%clk 0:02:52]}  a5 {[%clk 0:02:51]} 11. a3 {[%clk 0:02:52]}  Na6 {[%clk 0:02:50]} 12. Bc3 {[%clk 0:02:52]}  Nd7 {[%clk 0:02:49]} 13. Qb2 {[%clk 0:02:51]}  Bf6 {[%clk 0:02:49]} 14. d4 {[%clk 0:02:52]}  b5 {[%clk 0:02:40]} 15. Qc1 {[%clk 0:02:46]}  bxc4 {[%clk 0:02:16]} 16. bxc4 {[%clk 0:02:46]}  Rb8 {[%clk 0:02:16]} 17. Re1 {[%clk 0:02:41]}  Qc7 {[%clk 0:01:32]} 18. e3 {[%clk 0:02:33]}  Rfc8 {[%clk 0:01:24]} 19. Bf1 {[%clk 0:02:32]}  Qa7 {[%clk 0:01:24]} 20. e4 {[%clk 0:02:22]}  c5 {[%clk 0:01:19]} 21. e5 {[%clk 0:02:09]}  Be7 {[%clk 0:01:14]} 22. cxd5 {[%clk 0:02:08]}  exd5 {[%clk 0:01:10]} 23. Qd1 {[%clk 0:02:03]}  Nf8 {[%clk 0:01:06]} 24. Nb3 {[%clk 0:01:39]}  Ne6 {[%clk 0:01:06]} 25. Bh3 {[%clk 0:01:30]}  a4 {[%clk 0:01:04]} 26. Na5 {[%clk 0:01:20]}  cxd4 {[%clk 0:01:00]} 27. Bxd4 {[%clk 0:01:19]}  Nac5 {[%clk 0:00:57]} 28. Bc3 {[%clk 0:00:34]}  Ne4 {[%clk 0:00:52]} 29. Rxe4 {[%clk 0:00:33]}  dxe4 {[%clk 0:00:40]} 30. Bxe6 {[%clk 0:00:27]}  fxe6 {[%clk 0:00:37]} 31. Nd4 {[%clk 0:00:26]}  Rxc3 {[%clk 0:00:31]} 32. Nac6 {[%clk 0:00:25]}  Qc7 {[%clk 0:00:24]} 33. Nxb8 {[%clk 0:00:21]}  Qxb8 {[%clk 0:00:25]} 34. Qxa4 {[%clk 0:00:21]}  Qc8 {[%clk 0:00:23]} 35. h4 {[%clk 0:00:14]}  Rc4 {[%clk 0:00:21]} 36. Qd1 {[%clk 0:00:14]}  Qd7 {[%clk 0:00:14]} 37. Ne2 {[%clk 0:00:15]}  Qxd1+ {[%clk 0:00:14]} 38. Rxd1 {[%clk 0:00:15]}  Bxa3 {[%clk 0:00:13]} 39. Rd7 {[%clk 0:00:16]}  Bf5 {[%clk 0:00:13]} 40. Nf4 {[%clk 0:00:16]}  Bc1 {[%clk 0:00:12]} 41. Nh5 {[%clk 0:00:16]}  Bb2 {[%clk 0:00:11]} 42. g4 {[%clk 0:00:14]}  e3 {[%clk 0:00:07]} 43. f3 {[%clk 0:00:09]}  Bb1 {[%clk 0:00:05]} 44. Rxg7+ {[%clk 0:00:08]}  Kf8 {[%clk 0:00:05]} 45. Rb7 {[%clk 0:00:09]}  Rc1+ {[%clk 0:00:06]} 46. Kg2 {[%clk 0:00:09]}  e2 {[%clk 0:00:07]} 47. Rb8+ {[%clk 0:00:09]}  Ke7 {[%clk 0:00:07]} 48. Rb7+ {[%clk 0:00:09]}  Kd8 {[%clk 0:00:08]} 49. Ng7 {[%clk 0:00:10]}  e1=Q {[%clk 0:00:08]} 50. Nxe6+ {[%clk 0:00:09]}  Kc8 {[%clk 0:00:09]} 0-1